bitfinex/quotes_BTCUSD_20240728
["timestamp","ask_amount","ask_price","bid_price","bid_amount"]
[1722177478469,0.20517584,67882.0,67881.0,0.132777]
[1722177478667,0.20517584,67882.0,67881.0,0.146777]
[1722177479087,0.20498086,67882.0,67881.0,0.146777]
[1722177479287,0.18185699,67882.0,67881.0,0.146777]
[1722177480317,0.18185699,67882.0,67881.0,0.028924]
[1722177480534,0.3773811,67882.0,67881.0,0.028924]
[1722177480800,0.37794861,67882.0,67881.0,0.028924]
[1722177480993,0.32515437,67882.0,67881.0,0.028924]
[1722177481191,0.32415437,67882.0,67881.0,0.618189]
[1722177481405,0.32415437,67882.0,67881.0,0.7035797]
[1722177481406,0.18366289,67882.0,67881.0,0.7035797]
[1722177481611,0.22847893,67882.0,67881.0,0.604189]
[1722177481763,0.18366289,67882.0,67881.0,0.590189]
[1722177481978,0.22741173,67882.0,67881.0,0.596189]
[1722177482170,0.22741173,67882.0,67881.0,0.606189]
[1722177482495,0.20678361,67882.0,67881.0,0.606189]
[1722177483491,0.14608361,67882.0,67881.0,0.9260857]
[1722177483699,0.0684105,67882.0,67881.0,0.9260857]
[1722177484082,0.06842069,67882.0,67881.0,0.9260857]
[1722177484639,0.06842069,67882.0,67881.0,0.841895]
[1722177484640,0.06936582,67882.0,67881.0,0.841895]
[1722177484827,0.06830549,67882.0,67881.0,0.841895]
[1722177485541,0.06936582,67882.0,67881.0,0.841895]
[1722177485700,0.14787299,67882.0,67881.0,0.841895]
[1722177485853,0.14681266,67882.0,67881.0,0.841895]
[1722177486293,0.14787299,67882.0,67881.0,0.841895]
[1722177487165,0.06936582,67882.0,67881.0,0.841895]
[1722177487507,0.14692918,67882.0,67881.0,0.841895]
[1722177487708,0.1469439,67882.0,67881.0,0.841895]
[1722177488834,0.1469439,67882.0,67881.0,0.9559845]
[1722177489042,0.14800423,67882.0,67881.0,0.606189]
[1722177489240,0.1469439,67882.0,67881.0,0.606189]
[1722177490608,0.14800423,67882.0,67881.0,0.606189]
[1722177490803,0.12381967,67882.0,67881.0,0.606189]
[1722177491029,0.07946369,67882.0,67881.0,0.606189]
[1722177491192,0.12503293,67882.0,67881.0,0.606189]
[1722177491396,0.07946369,67882.0,67881.0,0.606189]
[1722177491597,0.12397259,67882.0,67881.0,0.606189]
[1722177491798,0.12503292,67882.0,67881.0,0.606189]
[1722177492022,0.12397259,67882.0,67881.0,0.606189]
[1722177492178,0.16883228,67882.0,67881.0,0.606189]
[1722177492736,0.16777195,67882.0,67881.0,0.606189]
[1722177493370,0.16791466,67882.0,67881.0,0.841895]
[1722177493573,0.16791466,67882.0,67881.0,0.9260856]
[1722177493574,0.12411274,67882.0,67881.0,0.9260856]
[1722177493798,0.14723682,67882.0,67881.0,0.9260856]
[1722177493994,0.14829715,67882.0,67881.0,0.9260856]
[1722177494209,0.1483004,67882.0,67881.0,0.9260856]
[1722177494415,0.14724007,67882.0,67881.0,0.9260856]
[1722177494664,0.06861638,67882.0,67881.0,0.9260856]
[1722177494860,0.06967671,67882.0,67881.0,0.9260856]
[1722177495268,0.15053417,67882.0,67881.0,0.9260856]
[1722177497026,0.15053417,67882.0,67881.0,0.841895]
[1722177497447,0.10588187,67882.0,67881.0,0.841895]
[1722177497655,0.15109306,67882.0,67881.0,0.841895]
[1722177498701,0.12796898,67882.0,67881.0,0.841895]
[1722177500015,0.12902931,67882.0,67881.0,0.841895]
[1722177500212,0.12796898,67882.0,67881.0,0.890895]
[1722177500431,0.17273547,67882.0,67881.0,0.841895]
[1722177500649,0.17177256,67882.0,67881.0,0.841895]
[1722177500868,0.17192114,67882.0,67881.0,0.841895]
[1722177501329,0.17192227,67882.0,67881.0,0.841895]
[1722177501935,0.19504679,67882.0,67881.0,0.841895]
[1722177502337,0.19504679,67882.0,67881.0,0.9311845]
[1722177503098,0.19504815,67882.0,67881.0,0.9311845]
[1722177503728,0.19504815,67882.0,67881.0,0.841895]
[1722177503963,0.10588231,67882.0,67881.0,0.841895]
[1722177504143,0.17192604,67882.0,67881.0,0.841895]
[1722177505682,0.12811162,67882.0,67881.0,0.841895]
[1722177507336,0.08275779,67882.0,67881.0,0.841895]
[1722177507536,0.12811745,67882.0,67881.0,0.841895]
[1722177507755,0.08275779,67882.0,67881.0,0.841895]
[1722177507922,0.12812094,67882.0,67881.0,0.841895]
[1722177510696,0.08275779,67882.0,67881.0,0.841895]
[1722177510871,0.1513051,67882.0,67881.0,0.841895]
[1722177511271,0.15130139,67882.0,67881.0,0.841895]
[1722177511477,0.12817744,67882.0,67881.0,0.841895]
[1722177512587,0.19496926,67882.0,67881.0,0.841895]
[1722177512761,0.19390893,67882.0,67881.0,0.841895]
[1722177513224,0.19380516,67882.0,67881.0,0.841895]
[1722177513396,0.12807367,67882.0,67881.0,0.841895]
[1722177513591,0.19380516,67882.0,67881.0,0.841895]
[1722177513804,0.12807367,67882.0,67881.0,0.841895]
[1722177514023,0.12801613,67882.0,67881.0,0.841895]
[1722177514230,0.04715867,67882.0,67881.0,0.966595]
[1722177514403,0.04715867,67882.0,67881.0,0.968595]
[1722177514404,0.04609834,67882.0,67881.0,0.968595]
[1722177514604,0.00084,67882.0,67881.0,1.204301]
[1722177515263,0.00084,67882.0,67881.0,1.198301]
[1722177515483,0.00084,67882.0,67881.0,1.34856057]
[1722177516115,0.00084,67882.0,67881.0,1.34656057]
[1722177516515,0.00084,67882.0,67881.0,1.34856057]
[1722177517900,0.00084,67882.0,67881.0,1.33856057]
[1722177518035,0.00084,67882.0,67881.0,1.35256057]
[1722177518239,0.00084,67882.0,67881.0,1.36256057]
[1722177518711,0.00084,67882.0,67881.0,1.839107]
[1722177518903,0.00084,67882.0,67881.0,1.862107]
[1722177520031,0.02396042,67882.0,67881.0,1.850107]
[1722177521675,0.02396042,67882.0,67881.0,1.836107]
[1722177521863,0.02396042,67882.0,67881.0,1.84512222]
[1722177522026,0.02396042,67882.0,67881.0,1.85812222]
[1722177522609,0.02396042,67882.0,67881.0,2.00938179]
[1722177523008,0.02396042,67882.0,67881.0,1.75838179]
[1722177523395,0.02396042,67882.0,67881.0,2.00938179]
[1722177524403,0.00084,67882.0,67881.0,2.00938179]
[1722177526220,0.00084,67882.0,67881.0,2.02338179]
[1722177526599,0.00084,67882.0,67881.0,1.77238179]
[1722177526828,0.00084,67882.0,67881.0,2.02338179]
[1722177528816,0.02395979,67882.0,67881.0,2.02338179]
[1722177529852,0.02395979,67882.0,67881.0,1.77238179]
[1722177530036,0.02395979,67882.0,67881.0,2.02338179]
[1722177532845,0.00084,67882.0,67881.0,2.02338179]
[1722177533614,0.00084,67882.0,67881.0,2.00938179]
[1722177533722,0.00084,67882.0,67881.0,2.15078179]
[1722177533929,0.00084,67882.0,67881.0,2.38648779]
[1722177534132,0.00084,67882.0,67881.0,2.40048779]
[1722177534741,0.00084,67882.0,67881.0,2.41448779]
[1722177535372,0.00084,67882.0,67881.0,2.40048779]
[1722177536173,0.02395885,67882.0,67881.0,2.40048779]
[1722177536805,0.02395885,67882.0,67881.0,2.32378779]
[1722177537014,0.02395885,67882.0,67881.0,2.40048779]
[1722177537546,0.00084,67882.0,67881.0,2.10238179]
[1722177537966,0.00084,67882.0,67881.0,2.11638179]
[1722177538945,0.00084,67882.0,67881.0,1.86538179]
[1722177539145,0.00084,67882.0,67881.0,2.11638179]
[1722177539872,0.00084,67882.0,67881.0,1.86538179]
[1722177540442,0.00084,67882.0,67881.0,2.11638179]
[1722177540796,0.02395922,67882.0,67881.0,2.11638179]
[1722177540993,0.00084,67882.0,67881.0,2.11638179]
[1722177541315,0.00084,67882.0,67881.0,2.23881354]
[1722177541947,0.00084,67882.0,67881.0,2.11638179]
[1722177542861,0.00084,67882.0,67881.0,1.86538179]
[1722177542973,0.00084,67882.0,67881.0,1.98781446]
[1722177543425,0.00084,67882.0,67881.0,2.23881446]
[1722177543833,0.02395928,67882.0,67881.0,2.23881446]
[1722177544605,0.00084,67882.0,67881.0,2.23881446]
[1722177545821,0.00084,67882.0,67881.0,2.23881387]
[1722177546164,0.00084,67882.0,67881.0,2.16311387]
[1722177548487,0.00084,67882.0,67881.0,2.16311932]
[1722177549086,0.00084,67882.0,67881.0,2.16312223]
[1722177549891,0.00084,67882.0,67881.0,1.80497579]
[1722177550111,0.00084,67882.0,67881.0,1.92741709]
[1722177550792,0.00084,67882.0,67881.0,1.77201709]
[1722177551428,0.00190033,67882.0,67881.0,1.77201709]
[1722177551838,0.00084,67882.0,67881.0,1.77201709]
[1722177552331,0.00084,67882.0,67881.0,1.64957579]
[1722177552513,0.00084,67882.0,67881.0,1.52101686]
[1722177552717,0.00084,67882.0,67881.0,1.77201686]
[1722177553094,0.00084,67882.0,67881.0,1.52101695]
[1722177553296,0.00084,67882.0,67881.0,1.77201695]
[1722177554978,0.00084,67882.0,67881.0,1.52101696]
[1722177555715,0.00084,67882.0,67881.0,1.39857579]
[1722177555939,0.00084,67882.0,67881.0,1.52101672]
[1722177556317,0.00084,67882.0,67881.0,1.77201672]
[1722177556517,0.00084,67882.0,67881.0,1.52101672]
[1722177556740,0.00084,67882.0,67881.0,1.77201672]
[1722177557596,0.02395973,67882.0,67881.0,2.00772272]
[1722177557725,0.00084,67882.0,67881.0,2.00772272]
[1722177558997,0.00084,67882.0,67881.0,2.00772247]
[1722177559619,0.00084,67882.0,67881.0,1.75672247]
[1722177560584,0.00084,67882.0,67881.0,2.00772247]
[1722177561149,0.02395955,67882.0,67881.0,2.00772247]
[1722177562483,0.02395955,67882.0,67881.0,1.75672247]
[1722177563611,0.02395955,67882.0,67881.0,2.00772247]
[1722177564773,0.02395955,67882.0,67881.0,1.75672239]
[1722177565226,0.02395955,67882.0,67881.0,2.00772239]
[1722177565460,0.02395955,67882.0,67881.0,1.88528179]
[1722177565686,0.02395955,67882.0,67881.0,2.00772247]
[1722177567823,0.02395955,67882.0,67881.0,1.75672247]
[1722177568055,0.02395955,67882.0,67881.0,2.16311329]
[1722177569249,0.02395955,67882.0,67881.0,2.34875407]
[1722177569479,0.02395955,67882.0,67881.0,2.58446007]
[1722177570161,0.02395955,67882.0,67881.0,2.33346007]
[1722177570654,0.00084,67886.0,67885.0,1.988398]
[1722177570655,5.5e-07,67886.0,67885.0,1.988398]
[1722177570885,5.5e-07,67886.0,67885.0,2.4591098]
[1722177572020,5.5e-07,67886.0,67885.0,2.3366783]
[1722177572243,5.5e-07,67886.0,67885.0,2.45910265]
[1722177572766,5.5e-07,67886.0,67885.0,2.56363558]
[1722177572953,5.5e-07,67886.0,67885.0,2.51940265]
[1722177573651,5.5e-07,67886.0,67885.0,2.53340265]
[1722177575193,5.5e-07,67886.0,67885.0,2.4109783]
[1722177575409,1.60696343,67888.0,67887.0,2.129752]
[1722177575606,1.60696343,67888.0,67887.0,2.67569102]
[1722177575607,1.43200419,67888.0,67887.0,2.67569102]
[1722177575960,1.28470419,67888.0,67887.0,3.06372835]
[1722177576422,1.26460419,67888.0,67887.0,3.13000739]
[1722177576629,1.24720419,67888.0,67887.0,3.06372835]
[1722177576761,1.21774419,67888.0,67887.0,3.06372835]
[1722177576964,1.09990419,67888.0,67887.0,3.07772835]
[1722177577163,1.09990419,67888.0,67887.0,3.09172835]
[1722177577387,0.86046632,67888.0,67887.0,2.55343145]
[1722177577590,0.86046632,67888.0,67887.0,2.52543145]
[1722177577798,0.84092142,67888.0,67887.0,2.59168592]
[1722177578029,0.84092142,67888.0,67887.0,2.60568592]
[1722177578030,0.72308142,67888.0,67887.0,2.60568592]
[1722177578287,0.62904609,67888.0,67887.0,2.60568592]
[1722177578485,0.61504609,67888.0,67887.0,2.53940817]
[1722177578857,0.52666609,67888.0,67887.0,2.53940817]
[1722177579070,0.49720609,67888.0,67887.0,2.53940817]
[1722177579346,0.46774609,67888.0,67887.0,2.53940817]
[1722177579777,0.41728609,67888.0,67887.0,2.55340817]
[1722177580003,0.38782609,67888.0,67887.0,2.55340817]
[1722177580342,0.27300332,67888.0,67887.0,2.55340817]
[1722177580494,0.0634,67908.0,67899.0,2.069186]
[1722177580698,0.0634,67908.0,67899.0,2.268886]
[1722177580918,0.0766,67910.0,67899.0,2.268886]
[1722177580919,0.0766,67910.0,67906.0,1.281066]
[1722177581165,0.00084,67922.0,67906.0,1.852004]
[1722177581166,0.0634,67911.0,67906.0,1.852004]
[1722177582766,0.0634,67911.0,67906.0,1.866004]
[1722177583596,0.0634,67911.0,67906.0,1.615004]
[1722177584228,0.00084,67922.0,67906.0,1.947104]
[1722177584366,0.0634,67914.0,67906.0,2.107404]
[1722177585663,0.0634,67914.0,67906.0,2.11639814]
[1722177586885,0.0634,67914.0,67906.0,1.97939814]
[1722177587475,0.0634,67914.0,67906.0,1.72399814]
[1722177588216,0.03141127,67907.0,67906.0,1.72399814]
[1722177589017,0.03141127,67907.0,67906.0,1.97499814]
[1722177589547,0.0083,67907.0,67906.0,1.97499814]
[1722177589714,0.0083,67907.0,67906.0,1.72399814]
[1722177589922,0.0083,67907.0,67906.0,1.98899814]
[1722177590147,0.0083,67907.0,67906.0,1.73799814]
[1722177590602,0.0083,67907.0,67906.0,1.98899814]
[1722177590737,0.0708,67907.0,67906.0,1.98899814]
[1722177592157,0.0708,67907.0,67906.0,1.73799814]
[1722177592386,0.0708,67907.0,67906.0,1.52127914]
[1722177592595,0.09391139,67907.0,67906.0,1.52127914]
[1722177592796,0.0708,67907.0,67906.0,1.52127914]
[1722177593670,0.0708,67907.0,67906.0,1.27027914]
[1722177593835,0.0708,67907.0,67906.0,1.52127914]
[1722177594569,0.0708,67907.0,67906.0,1.27027914]
[1722177595543,0.0708,67907.0,67906.0,1.52127914]
[1722177596214,0.09391194,67907.0,67906.0,1.52127914]
[1722177596647,0.0708,67907.0,67906.0,1.52127914]
[1722177598214,0.0083,67907.0,67906.0,1.52127914]
[1722177598457,0.0083,67907.0,67906.0,1.75689814]
[1722177599480,0.0083,67907.0,67906.0,1.91229814]
[1722177599661,0.03141164,67907.0,67906.0,1.91229814]
[1722177601149,0.03141164,67907.0,67906.0,1.99399814]
[1722177601549,0.03141164,67907.0,67906.0,2.11638042]
[1722177602738,0.03141164,67907.0,67906.0,2.41199942]
[1722177603248,0.03141164,67907.0,67906.0,2.41199746]
[1722177603976,0.002,67919.0,67918.0,1.361101]
[1722177604175,0.002,67919.0,67918.0,1.460801]
[1722177605181,0.002,67919.0,67918.0,1.696379]
[1722177606226,0.002,67919.0,67918.0,1.851779]
[1722177606645,0.02510732,67919.0,67918.0,1.851779]
[1722177606763,0.02510732,67919.0,67918.0,1.98814112]
[1722177607424,0.02510732,67919.0,67918.0,2.00214112]
[1722177607605,0.02510732,67919.0,67918.0,1.98814112]
[1722177607785,0.002,67919.0,67918.0,1.97414112]
[1722177607990,0.002,67919.0,67918.0,1.72314112]
[1722177608214,0.002,67919.0,67918.0,1.98214112]
[1722177609018,0.002,67919.0,67918.0,1.73114112]
[1722177609835,0.002,67919.0,67918.0,1.71714036]
[1722177610000,0.002,67919.0,67918.0,2.14624036]
[1722177610206,0.002,67919.0,67918.0,2.16024036]
[1722177611856,0.002,67919.0,67918.0,2.15523934]
[1722177612718,0.0658,67930.0,67929.0,0.281]
[1722177612919,0.0658,67930.0,67929.0,0.63431]
[1722177613128,0.0658,67930.0,67929.0,1.34093]
[1722177613339,0.0658,67930.0,67929.0,1.59947]
[1722177614909,0.08890449,67930.0,67929.0,1.59947]
[1722177615291,0.0658,67930.0,67929.0,1.61347]
[1722177615912,0.1315,67930.0,67929.0,1.61347]
[1722177616273,0.1315,67930.0,67929.0,1.12693]
[1722177616472,0.1315,67930.0,67929.0,0.83839]
[1722177616678,0.2082,67930.0,67929.0,0.83839]
[1722177616886,0.2082,67930.0,67929.0,0.84744969]
[1722177617221,0.2082,67930.0,67929.0,0.83839]
[1722177617833,0.2082,67930.0,67929.0,0.82439]
[1722177618036,0.1315,67930.0,67929.0,0.82439]
[1722177618241,0.15460572,67930.0,67929.0,0.82439]
[1722177618639,0.15460572,67930.0,67929.0,0.83839]
[1722177618868,0.1315,67930.0,67929.0,0.85239]
[1722177619253,0.1315,67930.0,67929.0,0.83839]
[1722177619502,0.1315,67930.0,67929.0,0.88739]
[1722177619650,0.1315,67930.0,67929.0,0.90139]
[1722177620066,0.1315,67930.0,67929.0,1.10139]
[1722177620527,0.1315,67930.0,67929.0,1.33693]
[1722177620704,0.1315,67930.0,67929.0,1.38993]
[1722177620907,0.1315,67930.0,67929.0,1.39193]
[1722177621671,0.1315,67930.0,67929.0,1.38993]
[1722177622269,0.15460477,67930.0,67929.0,1.38993]
[1722177627145,0.07390477,67930.0,67929.0,1.46863]
[1722177629571,0.0646,67932.0,67931.0,1.340898]
[1722177629770,0.0646,67932.0,67931.0,1.440598]
[1722177631034,0.0666,67939.0,67937.0,0.049]
[1722177631273,0.0666,67939.0,67938.0,1.149978]
[1722177631476,0.0666,67939.0,67938.0,1.39232152]
[1722177631873,0.0666,67939.0,67938.0,1.39432152]
[1722177634893,0.0666,67939.0,67938.0,1.4031741]
[1722177635483,0.0666,67939.0,67938.0,1.4171741]
[1722177635979,0.0666,67939.0,67938.0,1.4311741]
[1722177636522,0.0666,67939.0,67938.0,1.4401741]
[1722177636914,0.0666,67939.0,67938.0,1.4561741]
[1722177637146,0.002,67939.0,67938.0,1.4701741]
[1722177637478,0.002,67939.0,67938.0,1.7056821]
[1722177638724,0.002,67939.0,67938.0,1.7196821]
[1722177639338,0.002,67939.0,67938.0,1.7056821]
[1722177639722,0.02510148,67939.0,67938.0,1.7196821]
[1722177640038,0.02510148,67939.0,67938.0,1.7056821]
[1722177640250,0.02510148,67939.0,67938.0,1.8442821]
[1722177640466,0.02510148,67939.0,67938.0,1.8582821]
[1722177640641,0.02510148,67939.0,67938.0,1.96660999]
[1722177641039,0.02510148,67939.0,67938.0,2.30211799]
[1722177641187,0.02510148,67939.0,67938.0,2.47151799]
[1722177641188,0.002,67939.0,67938.0,2.47151799]
[1722177642214,0.002,67939.0,67938.0,2.3491901]
[1722177642354,1e-06,67944.0,67943.0,1.886791]
[1722177642596,0.0869,67956.0,67952.0,0.63419]
[1722177642597,0.0083,67956.0,67952.0,0.63419]
[1722177642801,0.0083,67956.0,67952.0,0.96935]
[1722177642996,0.0083,67956.0,67952.0,1.67573]
[1722177643354,0.0083,67956.0,67952.0,1.60564279]
[1722177644090,0.0083,67956.0,67952.0,1.61964279]
[1722177644311,0.0083,67956.0,67952.0,1.85014279]
[1722177644511,0.0239364,67953.0,67952.0,2.08560279]
[1722177644733,0.0239364,67953.0,67952.0,2.07160279]
[1722177645134,0.0239364,67953.0,67952.0,2.14620279]
[1722177645933,0.00084,67953.0,67952.0,1.89520279]
[1722177646136,1e-06,67953.0,67952.0,2.14620279]
[1722177646349,1e-06,67953.0,67952.0,2.24620279]
[1722177646570,1e-06,67953.0,67952.0,2.39646236]
[1722177646771,1e-06,67953.0,67952.0,2.41046236]
[1722177646969,1e-06,67953.0,67952.0,2.39646236]
[1722177647129,0.00084,67961.0,67955.0,1.966818]
[1722177647375,1e-06,67958.0,67957.0,0.980764]
[1722177647537,1e-06,67958.0,67957.0,1.93735257]
[1722177647743,1e-06,67958.0,67957.0,2.46930335]
[1722177647946,1e-06,67958.0,67957.0,2.47586719]
[1722177648575,1e-06,67958.0,67957.0,2.55856719]
[1722177648803,0.02309389,67958.0,67957.0,2.55856719]
[1722177649177,0.02309389,67958.0,67957.0,2.52050241]
[1722177649178,8.9e-07,67958.0,67957.0,2.52050241]
[1722177649484,0.00084,67961.0,67957.0,2.52050241]
[1722177649643,0.00084,67961.0,67958.0,2.24050644]
[1722177649790,0.07664,67961.0,67958.0,1.854314]
[1722177650203,0.07664,67961.0,67958.0,1.60985541]
[1722177650401,0.07664,67961.0,67958.0,1.86085541]
[1722177651835,0.07664,67961.0,67958.0,1.62385541]
[1722177652040,0.07664,67961.0,67958.0,1.87485541]
[1722177652333,0.00084,67961.0,67958.0,1.62385541]
[1722177652468,0.02509332,67959.0,67958.0,1.62385541]
[1722177652671,0.02509332,67959.0,67958.0,1.88885541]
[1722177654527,0.02509332,67959.0,67958.0,1.63785541]
[1722177654715,0.02509332,67959.0,67958.0,1.88885541]
[1722177655515,0.02509332,67959.0,67958.0,1.63785541]
[1722177655685,0.02509332,67959.0,67958.0,1.88885541]
[1722177658920,0.02509332,67959.0,67958.0,1.63785541]
[1722177659301,0.02509332,67959.0,67958.0,1.88885541]
[1722177660168,0.002,67959.0,67958.0,1.88885541]
[1722177660922,0.139,67959.0,67958.0,1.22401641]
[1722177661144,0.139,67959.0,67958.0,1.47301641]
[1722177661769,0.139,67959.0,67958.0,1.22401641]
[1722177662303,0.139,67959.0,67958.0,1.49801641]
[1722177662627,0.139,67959.0,67958.0,1.49601641]
[1722177663238,0.16209409,67959.0,67958.0,1.49801641]
[1722177663455,0.02509409,67959.0,67958.0,1.58071641]
[1722177664299,0.02509409,67959.0,67958.0,1.32971641]
[1722177664571,0.02509409,67959.0,67958.0,1.58071641]
[1722177664977,0.02509409,67959.0,67958.0,1.81615541]
[1722177666633,0.02509409,67959.0,67958.0,2.03245541]
[1722177666881,0.01214253,67959.0,67958.0,2.03245541]
[1722177667052,0.00084,67961.0,67960.0,1.495644]
[1722177667265,0.00084,67961.0,67960.0,1.618644]
[1722177667431,0.00084,67961.0,67960.0,1.62444084]
[1722177667635,0.00084,67961.0,67960.0,1.85987284]
[1722177668218,0.00084,67961.0,67960.0,1.98216098]
[1722177668418,0.00084,67961.0,67960.0,1.99616098]
[1722177668972,0.00084,67961.0,67960.0,2.01016098]
[1722177670175,0.0615,67973.0,67972.0,1.340259]
[1722177670372,0.0615,67973.0,67972.0,1.363259]
[1722177670777,0.0615,67973.0,67972.0,1.36905584]
[1722177671804,0.0615,67973.0,67972.0,1.38305584]
[1722177672329,0.0615,67973.0,67972.0,1.39705584]
[1722177674149,0.0615,67973.0,67972.0,1.38305584]
[1722177674356,0.0615,67973.0,67972.0,1.36905584]
[1722177674551,0.0615,67973.0,67972.0,1.38305584]
[1722177674752,0.0615,67973.0,67972.0,1.39705584]
[1722177675091,0.0615,67973.0,67972.0,1.38305584]
[1722177675563,0.0615,67973.0,67972.0,1.39505584]
[1722177675768,0.0615,67973.0,67972.0,1.11605584]
[1722177675769,0.141,67973.0,67972.0,1.11605584]
[1722177676184,0.141,67973.0,67972.0,1.10205584]
[1722177677244,0.141,67973.0,67972.0,1.35981453]
[1722177677859,0.141,67973.0,67972.0,1.11081453]
[1722177678090,0.141,67973.0,67972.0,1.35981453]
[1722177678292,0.141,67973.0,67972.0,1.34581453]
[1722177678491,0.141,67973.0,67972.0,1.35981453]
[1722177678914,0.141,67973.0,67972.0,1.37381453]
[1722177679103,0.164091,67973.0,67972.0,1.37381453]
[1722177679292,0.164091,67973.0,67972.0,1.40381453]
[1722177679493,0.164091,67973.0,67972.0,1.37581453]
[1722177679890,0.164091,67973.0,67972.0,1.40581453]
[1722177680284,0.141,67973.0,67972.0,1.40581453]
[1722177680854,0.141,67973.0,67972.0,1.40381453]
[1722177681055,0.141,67973.0,67972.0,1.40581453]
[1722177681779,0.141,67973.0,67972.0,1.40381453]
[1722177682248,0.141,67973.0,67972.0,1.40581453]
[1722177682420,0.141,67973.0,67972.0,1.40381453]
[1722177683161,0.10437072,67973.0,67972.0,1.40381453]
[1722177683555,0.12746172,67973.0,67972.0,1.40381453]
[1722177683883,0.10437072,67973.0,67972.0,1.40381453]
[1722177687310,0.12746196,67973.0,67972.0,1.40381453]
[1722177688359,0.12746196,67973.0,67972.0,1.15481453]
[1722177688562,0.12746196,67973.0,67972.0,1.40381453]
[1722177691578,0.12746196,67973.0,67972.0,1.40581453]
[1722177692963,0.12746196,67973.0,67972.0,1.15481453]
[1722177695177,0.12746196,67973.0,67972.0,1.40381453]
[1722177696701,0.12746196,67973.0,67972.0,1.15481453]
[1722177697141,0.12746196,67973.0,67972.0,1.40381453]
[1722177697728,0.00084,67974.0,67973.0,0.281]
[1722177697956,0.00084,67974.0,67973.0,1.99189041]
[1722177698112,0.00084,67974.0,67973.0,2.11416665]
[1722177698903,0.00084,67974.0,67973.0,2.21416665]
[1722177699327,0.00084,67974.0,67973.0,2.22816665]
[1722177699588,0.00084,67974.0,67973.0,2.22815206]
[1722177699959,0.00084,67974.0,67973.0,2.21415266]
[1722177700381,0.00084,67974.0,67973.0,2.22815266]
[1722177700500,0.00084,67974.0,67973.0,2.24215266]
[1722177700916,0.00084,67974.0,67973.0,1.65995149]
[1722177701116,0.02392877,67974.0,67973.0,1.48298662]
[1722177701310,0.02392877,67974.0,67973.0,1.46898662]
[1722177701836,0.02392877,67974.0,67973.0,1.6052566]
[1722177702670,0.02392877,67974.0,67973.0,1.48298662]
[1722177702983,0.02392877,67974.0,67973.0,1.60525413]
[1722177703184,0.02392877,67974.0,67973.0,1.62438662]
[1722177703386,0.02392877,67974.0,67973.0,1.7466539]
[1722177703527,0.02392877,67974.0,67973.0,1.74665363]
[1722177703731,0.02392877,67974.0,67973.0,1.48298662]
[1722177704194,0.02392877,67974.0,67973.0,1.49698662]
[1722177704375,0.02392877,67974.0,67973.0,1.85464162]
[1722177704574,0.02392877,67974.0,67973.0,1.71837362]
[1722177704777,0.02392877,67974.0,67973.0,1.84064153]
[1722177705241,0.02392877,67974.0,67973.0,1.85464153]
[1722177706148,0.02392877,67974.0,67973.0,1.73237362]
[1722177706300,0.02392877,67974.0,67973.0,1.85464068]
[1722177706512,0.02392877,67974.0,67973.0,1.73237362]
[1722177706711,0.02392877,67974.0,67973.0,1.8546407]
[1722177706947,0.02392877,67974.0,67973.0,1.73237362]
[1722177707155,0.02392877,67974.0,67973.0,1.49698662]
[1722177707808,0.00084,67974.0,67973.0,1.49698662]
[1722177709253,0.00084,67974.0,67973.0,1.24598662]
[1722177709675,0.00084,67974.0,67973.0,1.49698662]
[1722177712239,0.00084,67974.0,67973.0,1.63908662]
[1722177712432,0.02392848,67974.0,67973.0,1.63908662]
[1722177712747,0.00084,67974.0,67973.0,1.63908662]
[1722177715459,0.02392831,67974.0,67973.0,1.63908662]
[1722177716063,0.02392831,67974.0,67973.0,1.87447362]
[1722177716259,0.02392831,67974.0,67973.0,1.63908662]
[1722177716671,0.02392831,67974.0,67973.0,1.87447362]
[1722177717714,0.00194033,67974.0,67973.0,1.99673148]
[1722177717923,0.0083,67975.0,67974.0,1.340228]
[1722177718133,0.0083,67975.0,67974.0,1.66061565]
[1722177718371,0.0083,67975.0,67974.0,1.66626411]
[1722177718579,0.0083,67975.0,67974.0,1.90164811]
[1722177718998,0.0083,67975.0,67974.0,1.63296921]
[1722177719201,0.0083,67975.0,67974.0,1.46887646]
[1722177719421,0.0083,67975.0,67974.0,1.59114131]
[1722177719623,0.0083,67975.0,67974.0,1.46887646]
[1722177720611,0.0083,67975.0,67974.0,1.71826046]
[1722177721251,0.0083,67975.0,67974.0,1.73226046]
[1722177723271,0.0083,67975.0,67974.0,1.49687646]
[1722177723894,0.0083,67975.0,67974.0,1.73226046]
[1722177724236,0.0083,67975.0,67974.0,1.49687646]
[1722177724642,0.0083,67975.0,67974.0,1.61914478]
[1722177725203,0.0083,67975.0,67974.0,1.85452878]
[1722177725627,0.0083,67975.0,67974.0,1.91472878]
[1722177726222,0.0083,67975.0,67974.0,1.66372878]
[1722177726588,0.03138811,67975.0,67974.0,1.91472878]
[1722177726863,0.0083,67975.0,67974.0,1.66372878]
[1722177727193,0.0083,67975.0,67974.0,1.42834478]
[1722177727725,0.0083,67975.0,67974.0,1.66372878]
[1722177728141,0.0083,67975.0,67974.0,1.91472878]
[1722177728337,0.002,67979.0,67978.0,1.575535]
[1722177728539,0.002,67979.0,67978.0,1.598535]
[1722177728744,0.002,67979.0,67978.0,1.60418065]
[1722177729980,0.002,67979.0,67978.0,1.61818065]
[1722177730197,0.02508726,67979.0,67978.0,1.61818065]
[1722177730398,0.02508726,67979.0,67978.0,1.63218065]
[1722177731497,0.002,67979.0,67978.0,1.38118065]
[1722177732505,0.002,67979.0,67978.0,1.50343925]
[1722177732798,0.002,67979.0,67978.0,1.75443925]
[1722177733455,0.06583439,67996.0,67986.0,1.340039]
[1722177733456,0.1425,67995.0,67986.0,1.340039]
[1722177733662,0.1425,67995.0,67986.0,1.598381]
[1722177733895,0.1425,67995.0,67986.0,1.76809934]
[1722177734411,0.1425,67995.0,67986.0,1.76809829]
[1722177734614,0.03137504,67987.0,67986.0,1.64584933]
[1722177734812,0.17387504,67987.0,67986.0,1.64384933]
[1722177735028,0.17387504,67987.0,67986.0,1.6020124]
[1722177735196,0.17387504,67987.0,67986.0,1.6160124]
[1722177735520,0.17387504,67987.0,67986.0,1.0646704]
[1722177735718,0.15079,67987.0,67986.0,1.0646704]
[1722177736569,0.15079,67987.0,67986.0,1.1136704]
[1722177736979,0.15079,67987.0,67986.0,1.1506704]
[1722177737616,0.15079,67987.0,67986.0,1.14568956]
[1722177738160,0.15079,67987.0,67986.0,1.15968956]